{"text_format":"1","workbook":"xlsx","n_sheets":8,"sheets":["入力要領","求人票","例外事由","選択肢","コピー用データ","求人受付簿","求人名簿","求人HP"],"not_rendered":{"charts":0,"images":2,"macros":1,"external_links":0,"defined_names":5,"comments":2,"pivot_tables":0},"unopened":[],"bounds":{"document_bytes":16777216,"sheet_cells":100000,"rows_first":2000,"rows_last":500,"rows_between":2000,"halvings":0,"cell_chars":16384,"cell_head_chars":4096},"cells_cut":0,"cells_raw":0,"read":"whole","date_system":"1900"}

{"sheet":"入力要領","index":0,"n_rows":80,"n_cols":47,"rows_kept":80,"cut":false,"hidden":false,"merged":[[79,2,79,8],[79,9,79,27],[76,2,76,8],[76,9,76,27],[77,2,77,8],[77,9,77,27],[78,2,78,8],[78,9,78,27],[73,2,73,8],[73,9,73,27],[74,2,74,8],[74,9,74,27],[75,2,75,8],[75,9,75,27],[70,2,70,8],[70,9,70,27],[71,2,71,8],[71,9,71,27],[72,2,72,8],[72,9,72,27],[62,7,62,8],[62,11,62,12],[62,13,62,14],[56,3,56,5],[56,7,56,13],[56,17,56,19],[56,20,56,21],[62,28,63,46],[63,21,63,23],[69,2,69,8],[69,9,69,27],[58,5,58,14],[58,28,59,46],[59,7,59,14],[60,11,60,12],[60,13,60,14],[60,15,63,15],[60,27,63,27],[60,28,61,46],[61,11,61,12],[61,13,61,14],[54,3,54,5],[54,7,54,13],[50,27,59,27],[50,28,51,46],[51,16,52,16],[51,17,51,19],[51,21,51,23],[52,3,52,5],[52,6,52,8],[52,9,52,10],[52,11,52,13],[52,17,52,25],[56,28,57,46],[57,3,57,6],[57,7,57,9],[57,11,57,12],[57,17,57,18],[57,19,57,24],[54,28,55,46],[55,3,55,5],[55,7,55,13],[55,16,57,16],[55,17,55,19],[55,20,55,21],[50,3,51,7],[50,8,51,8],[50,9,51,13],[50,14,51,14],[50,17,50,19],[50,21,50,23],[46,28,47,46],[48,1,63,2],[48,3,49,14],[48,15,57,15],[48,16,50,16],[48,17,48,19],[48,21,48,23],[48,24,50,24],[48,25,50,25],[48,28,49,46],[52,28,53,46],[53,3,53,5],[53,7,53,13],[53,16,54,16],[53,17,54,17],[53,18,54,20],[53,21,54,21],[53,22,54,23],[40,22,40,25],[40,28,41,46],[41,17,41,21],[41,22,41,25],[42,1,45,2],[42,3,43,25],[42,28,43,46],[44,3,45,25],[44,28,45,46],[34,1,41,1],[34,2,41,2],[34,3,34,17],[36,3,37,25],[36,27,49,27],[36,28,37,46],[38,3,39,25],[38,28,39,46],[40,3,41,16],[40,17,40,21],[49,17,49,23],[30,33,30,34],[30,35,30,36],[31,29,31,30],[31,31,31,32],[31,33,31,34],[31,35,31,39],[32,3,33,25],[32,27,35,27],[32,28,35,33],[32,34,35,35],[32,36,35,38],[32,39,35,39],[23,42,23,46],[24,1,33,1],[24,2,33,2],[24,3,25,25],[24,43,24,45],[25,41,35,46],[26,3,27,25],[28,3,29,25],[28,28,29,31],[22,3,23,4],[22,6,23,6],[22,7,23,14],[22,16,22,17],[22,18,22,22],[23,1,23,2],[23,20,23,21],[28,32,28,33],[28,34,29,35],[28,36,29,36],[28,37,29,39],[29,32,29,33],[30,3,31,25],[30,29,30,30],[30,31,30,32],[19,43,19,46],[20,1,20,2],[20,3,21,14],[20,41,22,41],[21,16,21,17],[21,18,21,19],[21,28,27,39],[21,42,22,42],[21,43,22,46],[22,1,22,2],[17,40,35,40],[17,41,19,41],[17,43,17,46],[18,1,18,2],[18,28,18,29],[18,43,18,46],[19,27,20,27],[19,28,20,29],[19,30,20,30],[19,31,20,32],[17,24,23,25],[17,27,18,27],[17,28,17,32],[17,33,18,35],[17,36,18,38],[17,39,18,39],[19,37,20,38],[19,39,20,39],[14,1,14,2],[14,3,14,6],[14,7,14,25],[14,28,14,41],[16,1,16,24],[17,3,19,14],[17,15,23,15],[17,16,20,19],[17,20,20,22],[17,23,23,23],[23,41,24,41],[13,1,13,2],[13,29,13,35],[13,37,13,41],[13,44,13,46],[10,31,10,32],[10,37,10,39],[12,1,12,2],[12,3,13,15],[12,16,13,16],[12,17,13,25],[12,27,13,27],[12,29,12,31],[12,32,12,41],[8,33,10,35],[8,37,8,39],[8,40,10,41],[9,1,9,2],[9,6,9,7],[9,22,10,23],[9,31,9,32],[9,37,9,39],[10,1,10,2],[10,6,10,7],[8,3,10,5],[8,8,10,11],[8,12,10,16],[8,18,10,21],[8,24,10,25],[8,28,10,30],[12,42,13,42],[12,44,12,46]]}
[null,"求人票入力要領"]
[null,null,"○画面下の「求人票」というシートに入力してください｡"]
[null,null,"○タイトルに※のある欄を除き、入力規制のかかっていない欄をもれなく入力してください｡"]
[null,null,"○選択項目のある欄（　　　 ←右上に赤いマークのある欄）は､リストから該当するものを選択してください。（例：転勤の可能性，自動車運転免許など）"]
[null,null,null,"※リストは、　　　の欄をクリック後に右上に表示される　　をクリックすると表示されます。"]
[null,null,"○加入保険については，該当するものにチェックを入れてください。"]
[null,null,null,"※保険名の横の□マスをクリックするとチェックが入ります。チェックを外す場合は、再度クリックしてください。）"]
[]
[null,"※",null,null,null,null,"※",null,null,null,null,null,"求  人  票",null,null,null,null,"※",null,null,null,null,"※",null,null,null,null,"※",null,null,null,"※",null,null,null,null,null,"※"]
[null,"索　引",null,null,null,null,"求　人",null,null,null,null,null,null,null,null,null,null,"求　人",null,null,null,null,"取扱者",null,null,null,null,"産業分類",null,null,null,"職業分類",null,null,null,null,null,"有 効"]
[null,"区　分",null,null,null,null,"番　号",null,null,null,null,null,null,null,null,null,null,"年月日",null,null,null,null,null,null,null,null,null,"番　　号",null,null,null,"番　　号",null,null,null,null,null,"期 限"]
[]
[null,"事　業",null,null,null,null,null,null,null,null,null,null,null,null,null,null,"業　種",null,null,null,null,null,null,null,null,null,null,"所在地","〒",null,null,null,null,null,null,null,null,null,null,null,null,null,"求　人責任者","(役職名)"]
[null,"所　名",null,null,null,null,null,null,null,null,null,null,null,null,null,null,null,null,null,null,null,null,null,null,null,null,null,null,"℡",null,null,null,null,null,null,null,"Fax",null,null,null,null,null,null,"(氏　名)"]
[null,"ＵＲＬ",null," http://",null,null,null,null,null,null,null,null,null,null,null,null,null,null,null,null,null,null,null,null,null,null,null,"E-mail"]
[]
[null,"必要とする人材",null,null,null,null,null,null,null,null,null,null,null,null,null,null,null,null,null,null,null,null,null,null,null,null,null,"求人事業所の概要"]
[null,null,null,null,null,null,null,null,null,null,null,null,null,null,null,"勤　務　場　所",null,null,null,null,"市・町・村",null,null,"転勤の可能性","有・無",null,null,"創　立　　　年　月","大・明・昭・平・令",null,null,null,null,"資本金",null,null,null,null,null,"万円","選　　　　　　考","採　用担当者","(役職名)"]
[null,"職　種",null,null,null,null,null,null,null,null,null,null,null,null,null,null,null,null,null,null,null,null,null,null,null,null,null,null,null,null,"年",null,null,null,null,null,null,null,null,null,null,null,"(氏　名)"]
[null,null,null,null,null,null,null,null,null,null,null,null,null,null,null,null,null,null,null,null,null,null,null,null,null,null,null,"従　業　　　員　数"," 事業所",null,null,"人のうち",null,"男",null,"人","　企業　　　　　　　　　　　　　　　　　　　　　　　　　　　　　　　　　　　　　　　　　",null,null," 人",null,null,"（TEL）"]
[null,"役職名",null,null,null,null,null,null,null,null,null,null,null,null,null,null,null,null,null,null,null,null,null,null,null,null,null,null,null,null,null,null,null,"女",null,"人","  全体",null,null,null,null,"面　接","(日時)","(場所）"]
[null,null,null,null,null,null,null,null,null,null,null,null,null,null,null,null,null,null,"線"]
[null,"採　用",null,null,null,null,"年齢","年齢不問",null,null,null,null,null,null,null,null,null,null,"駅・バス停から",null,null,null,null,null,null,null,null,"他 の "]
[null,"人　数",null,null,null,"人",null,null,null,null,null,null,null,null,null,null,null,null,"徒歩",null,null,null,"分",null,null,null,null,null,null,null,null,null,null,null,null,null,null,null,null,null,null,"必　要　書　類","履歴書（写真添付）"]
[null,"職　務　の　内　容","（具体的に記入してください）",null,null,null,null,null,null,null,null,null,null,null,null,null,null,null,null,null,null,null,null,null,null,null,null,"主 な",null,null,null,null,null,null,null,null,null,null,null,null,null,null,"その他 (",null,null,null,")"]
[]
[null,null,null,null,null,null,null,null,null,null,null,null,null,null,null,null,null,null,null,null,null,null,null,null,null,null,null,"事業所"]
[]
[null,null,null,null,null,null,null,null,null,null,null,null,null,null,null,null,null,null,null,null,null,null,null,null,null,null,null,"就 業","有・無",null,null,null,"労 働",null,"有・無",null,"宿　舎","有・無"]
[null,null,null,null,null,null,null,null,null,null,null,null,null,null,null,null,null,null,null,null,null,null,null,null,null,null,null,"規 則",null,null,null,null,"組 合"]
[null,null,null,null,null,null,null,null,null,null,null,null,null,null,null,null,null,null,null,null,null,null,null,null,null,null,null,"加 入",null,"雇用",null,"労災",null,"定　年",null,"有・無",null,"（",null,"歳）"]
[null,null,null,null,null,null,null,null,null,null,null,null,null,null,null,null,null,null,null,null,null,null,null,null,null,null,null,"保 険",null,"健康",null,"厚生",null,"再雇用",null,"有・無"]
[null,null,null,null,null,null,null,null,null,null,null,null,null,null,null,null,null,null,null,null,null,null,null,null,null,null,null,"主　な\n\n取引先",null,null,null,null,null,null,"年　商",null,null,null,null,"万\n円"]
[]
[null,"必要な条件",null,"（必要な技術・経験・資格・免許・学歴など）※具体的に記入してください。"]
[]
[null,null,null,null,null,null,null,null,null,null,null,null,null,null,null,null,null,null,null,null,null,null,null,null,null,null,null,"事　業　内　容"]
[]
[]
[]
[null,null,null,null,null,null,null,null,null,null,null,null,null,null,null,null,null,"自動車運転免許",null,null,null,null,"要・否"]
[null,null,null,null,null,null,null,null,null,null,null,null,null,null,null,null,null,"※AT限定",null,null,null,null,"可・不可"]
[null,"その他\n特記\n　事項"]
[]
[]
[]
[]
[]
[null,"賃　金　条　件",null,"支給総額(定額的に支払われる賃金）",null,null,null,null,null,null,null,null,null,null,null,"労　働　時　間","就　業　　　時　間",null,null,null,"～",null,null,null,"交替制","有・無"]
[null,null,null,null,null,null,null,null,null,null,null,null,null,null,null,null,null,"（土曜)"]
[null,null,null,null,null,null,null,null,"～",null,null,null,null,null,"円",null,null,null,null,null,"～",null,null,null,null,null,null,"会 社 の 特 長"]
[null,null,null,null,null,null,null,null,null,null,null,null,null,null,null,null,"休　憩\n時　間",null,null,null,"～"]
[null,null,null,"基本給",null,null,null,null,null,"～",null,null,null,null,"円"]
[null,null,null,null,null,null,"手当",null,null,null,null,null,null,null,"円",null,"時間外","有・無","（月平均",null,null,null,"時間）"]
[null,null,null,null,null,null,"手当",null,null,null,null,null,null,null,"円"]
[null,null,null,null,null,null,"手当",null,null,null,null,null,null,null,"円",null,"休　日","日曜・祝日・",null,null,null,null,"曜","(月",null,"回)"]
[null,null,null,null,null,null,"手当",null,null,null,null,null,null,null,"円",null,null," 年間休日数",null,null,null,null,"日"]
[null,null,null,"　　  通勤手当",null,null,null,"全額・定額",null,null,"（",null,null,"円まで）",null,null,null," その他（",null,null,null,null,null,null,null,"）"]
[null,null,null,null,null,null,null,null,null,null,null,null,null,null,null,"雇用形態"]
[null,null,null,null,null,"賃金形態",null,"月給制・日給月給制・その他",null,null,null,null,null,null,null,"雇用期間"]
[null,null,null,null,null,"賞　　与",null,"年",null,"回","：",null,null,"月分・円",null,"その他",null,null,null,null,null,null,null,null,null,null,null,"備　考","◎求人票は雇用契約書ではありません。採用時には必ず，書面により労働条件の明示を受けてください。"]
[null,null,null,null,null,"昇　　給",null,"昨年実績",null,null,"：",null,null,"％・円"]
[null,null,null,null,null,"退 職 金",null,"有・無",null,null,"：",null,null,"年以上",null,null,null,null,null,null,null,null,null,null,null,null,null,null,"◎地域別最低賃金改定後は，法定どおりに給与を見直します。"]
[null,null,null,null,null,null,null,null,null,null,null,null,null,null,null,null,"賃金締切日毎月",null,null,"日",null,"支払日毎月",null,null,null,"日"]
[]
[]
[]
[]
[null,"■　更新履歴※"]
[null,"No.","更新日",null,null,null,null,null,null,"特記事項"]
[null,1]
[null,2]
[null,3]
[null,4]
[null,5]
[null,6]
[null,7]
[null,8]
[null,9]
[null,10]

{"sheet":"求人票","index":1,"n_rows":73,"n_cols":47,"rows_kept":73,"cut":false,"hidden":false,"merged":[[16,1,16,2],[10,3,12,14],[13,3,14,14],[15,6,16,6],[5,1,5,2],[6,1,6,2],[15,1,15,2],[7,1,7,2],[9,1,9,24],[7,3,7,6],[10,24,16,25],[15,18,15,22],[5,17,6,25],[1,28,3,30],[5,29,5,31],[2,31,2,32],[3,31,3,32],[5,32,5,41],[1,33,3,35],[6,37,6,41],[25,27,28,27],[25,28,28,33],[25,34,28,35],[25,36,28,38],[23,33,23,34],[23,35,23,36],[24,35,24,39],[24,33,24,34],[12,27,13,27],[21,36,22,36],[21,37,22,39],[10,27,11,27],[5,27,6,27],[5,42,6,42],[6,44,6,46],[5,44,5,46],[10,43,10,46],[10,33,11,35],[10,36,11,38],[11,28,11,29],[7,28,7,41],[6,29,6,35],[10,40,28,40],[10,41,12,41],[69,2,69,8],[69,9,69,27],[55,7,55,8],[49,7,49,13],[46,7,46,13],[52,7,52,14],[54,11,54,12],[55,11,55,12],[53,11,53,12],[53,13,53,14],[51,5,51,14],[54,13,54,14],[50,7,50,9],[48,3,48,5],[47,7,47,13],[50,3,50,6],[50,11,50,12],[47,3,47,5],[46,22,47,23],[55,13,55,14],[46,3,46,5],[66,9,66,27],[67,2,67,8],[67,9,67,27],[53,28,54,46],[55,28,56,46],[53,15,56,15],[2,1,2,2],[3,1,3,2],[10,15,16,15],[10,16,13,19],[10,20,13,22],[14,18,14,19],[14,16,14,17],[1,12,3,16],[13,1,13,2],[15,3,16,4],[11,1,11,2],[16,20,16,21],[5,16,6,16],[5,3,6,15],[15,16,15,17],[7,7,7,25],[12,28,13,29],[12,30,13,30],[51,28,52,46],[35,3,36,25],[46,21,47,21],[35,1,38,2],[43,3,44,7],[43,14,44,14],[43,8,44,8],[43,9,44,13],[41,1,56,2],[43,27,52,27],[43,28,44,46],[44,21,44,23],[29,27,42,27],[48,7,48,13],[49,3,49,5],[29,3,30,25],[41,24,43,24],[41,25,43,25],[41,3,42,14],[45,11,45,13],[50,19,50,24],[41,15,50,15],[44,16,45,16],[44,17,44,19],[49,28,50,46],[39,28,40,46],[41,28,42,46],[17,1,26,1],[22,32,22,33],[33,28,34,46],[17,2,26,2],[31,28,32,46],[29,28,30,46],[25,3,26,25],[21,3,22,25],[19,3,20,25],[21,28,22,31],[21,32,21,33],[21,34,22,35],[16,41,17,41],[16,42,16,46],[33,17,33,21],[33,22,33,25],[34,22,34,25],[17,3,18,25],[15,7,16,14],[13,41,15,41],[34,17,34,21],[27,1,34,1],[27,2,34,2],[27,3,27,17],[1,24,3,25],[1,18,3,21],[2,22,3,23],[1,3,3,5],[43,21,43,23],[41,16,43,16],[42,17,42,23],[37,3,38,25],[43,17,43,19],[41,21,41,23],[2,6,2,7],[3,6,3,7],[31,3,32,25],[33,3,34,16],[10,23,16,23],[1,8,3,11],[23,3,24,25],[41,17,41,19],[47,28,48,46],[35,28,36,46],[37,28,38,46],[11,43,11,46],[12,43,12,46],[17,43,17,45],[14,43,15,46],[14,42,15,42],[14,28,20,39],[18,41,28,46],[45,28,46,46],[12,31,13,32],[12,37,13,38],[12,39,13,39],[10,39,11,39],[25,39,28,39],[48,17,48,19],[49,17,49,19],[49,20,49,21],[50,17,50,18],[68,2,68,8],[68,9,68,27],[48,16,50,16],[45,9,45,10],[45,6,45,8],[45,3,45,5],[46,16,47,16],[46,17,47,17],[46,18,47,20],[56,21,56,23],[53,27,56,27],[45,17,45,25],[48,20,48,21],[70,2,70,8],[70,9,70,27],[71,2,71,8],[71,9,71,27],[72,2,72,8],[72,9,72,27],[1,40,3,41],[62,2,62,8],[62,9,62,27],[63,2,63,8],[63,9,63,27],[10,28,10,32],[23,29,23,30],[23,31,23,32],[24,29,24,30],[24,31,24,32],[2,37,2,39],[3,37,3,39],[1,37,1,39],[64,2,64,8],[64,9,64,27],[65,2,65,8],[65,9,65,27],[66,2,66,8]]}
[]
[null,"※",null,null,null,null,"※",null,null,null,null,null,"求  人  票",null,null,null,null,"※",null,null,null,null,"※",null,null,null,null,"※",null,null,null,"※",null,null,null,null,null,"※"]
[null,"索　引",null,null,null,null,"求　人",null,null,null,null,null,null,null,null,null,null,"求　人",null,null,null,null,"取扱者",null,null,null,null,"産業分類",null,null,null,"職業分類",null,null,null,null,null,"有 効"]
[null,"区　分",null,null,null,null,"番　号",null,null,null,null,null,null,null,null,null,null,"年月日",null,null,null,null,null,null,null,null,null,"番　　号",null,null,null,"番　　号",null,null,null,null,null,"期 限"]
[]
[null,"事　業",null,null,null,null,null,null,null,null,null,null,null,null,null,null,"業　種",null,null,null,null,null,null,null,null,null,null,"所在地","〒",null,null,null,null,null,null,null,null,null,null,null,null,null,"求　人責任者","(役職名)"]
[null,"所　名",null,null,null,null,null,null,null,null,null,null,null,null,null,null,null,null,null,null,null,null,null,null,null,null,null,null,"℡",null,null,null,null,null,null,null,"Fax",null,null,null,null,null,null,"(氏　名)"]
[null,"ＵＲＬ",null," http://",null,null,null,null,null,null,null,null,null,null,null,null,null,null,null,null,null,null,null,null,null,null,null,"E-mail"]
[]
[null,"必要とする人材",null,null,null,null,null,null,null,null,null,null,null,null,null,null,null,null,null,null,null,null,null,null,null,null,null,"求人事業所の概要"]
[null,null,null,null,null,null,null,null,null,null,null,null,null,null,null,"勤　務　場　所",null,null,null,null,"市・町・村",null,null,"転勤の可能性","有・無",null,null,"創　立　　　年　月","大・明・昭・平・令",null,null,null,null,"資本金",null,null,null,null,null,"万円","選　　　　　　考","採　用担当者","(役職名)"]
[null,"職　種",null,null,null,null,null,null,null,null,null,null,null,null,null,null,null,null,null,null,null,null,null,null,null,null,null,null,null,null,"年",null,null,null,null,null,null,null,null,null,null,null,"(氏　名)"]
[null,null,null,null,null,null,null,null,null,null,null,null,null,null,null,null,null,null,null,null,null,null,null,null,null,null,null,"従　業　　　員　数"," 事業所",null,null,"人のうち",null,"男",null,"人","　企業　　　　　　　　　　　　　　　　　　　　　　　　　　　　　　　　　　　　　　　　　",null,null," 人",null,null,"（TEL）"]
[null,"役職名",null,null,null,null,null,null,null,null,null,null,null,null,null,null,null,null,null,null,null,null,null,null,null,null,null,null,null,null,null,null,null,"女",null,"人","  全体",null,null,null,null,"面　接","(日時)","(場所）"]
[null,null,null,null,null,null,null,null,null,null,null,null,null,null,null,null,null,null,"線"]
[null,"採　用",null,null,null,null,"年齢",null,null,null,null,null,null,null,null,null,null,null,"駅・バス停から",null,null,null,null,null,null,null,null,"他 の "]
[null,"人　数",null,null,null,"人",null,null,null,null,null,null,null,null,null,null,null,null,"徒歩",null,null,null,"分",null,null,null,null,null,null,null,null,null,null,null,null,null,null,null,null,null,null,"必　要　書　類","履歴書（写真添付）"]
[null,"職　務　の　内　容","（具体的に記入してください）",null,null,null,null,null,null,null,null,null,null,null,null,null,null,null,null,null,null,null,null,null,null,null,null,"主 な",null,null,null,null,null,null,null,null,null,null,null,null,null,null,"その他 (",null,null,null,")"]
[]
[null,null,null,null,null,null,null,null,null,null,null,null,null,null,null,null,null,null,null,null,null,null,null,null,null,null,null,"事業所"]
[]
[null,null,null,null,null,null,null,null,null,null,null,null,null,null,null,null,null,null,null,null,null,null,null,null,null,null,null,"就 業","有・無",null,null,null,"労 働",null,"有・無",null,"宿　舎","有・無"]
[null,null,null,null,null,null,null,null,null,null,null,null,null,null,null,null,null,null,null,null,null,null,null,null,null,null,null,"規 則",null,null,null,null,"組 合"]
[null,null,null,null,null,null,null,null,null,null,null,null,null,null,null,null,null,null,null,null,null,null,null,null,null,null,null,"加 入",null,"雇用",null,"労災",null,"定　年",null,"有・無",null,"（",null,"歳）"]
[null,null,null,null,null,null,null,null,null,null,null,null,null,null,null,null,null,null,null,null,null,null,null,null,null,null,null,"保 険",null,"健康",null,"厚生",null,"再雇用",null,"有・無"]
[null,null,null,null,null,null,null,null,null,null,null,null,null,null,null,null,null,null,null,null,null,null,null,null,null,null,null,"主　な\n\n取引先",null,null,null,null,null,null,"年　商",null,null,null,null,"万\n円"]
[]
[null,"必要な条件",null,"（必要な技術・経験・資格・免許・学歴など）※具体的に記入してください。"]
[]
[null,null,null,null,null,null,null,null,null,null,null,null,null,null,null,null,null,null,null,null,null,null,null,null,null,null,null,"事　業　内　容"]
[]
[]
[]
[null,null,null,null,null,null,null,null,null,null,null,null,null,null,null,null,null,"自動車運転免許",null,null,null,null,"要・否"]
[null,null,null,null,null,null,null,null,null,null,null,null,null,null,null,null,null,"※AT限定",null,null,null,null,"可・不可"]
[null,"その他\n特記\n　事項"]
[]
[]
[]
[]
[]
[null,"賃　金　条　件",null,"支給総額(定額的に支払われる賃金）",null,null,null,null,null,null,null,null,null,null,null,"労　働　時　間","就　業　　　時　間",null,null,null,"～",null,null,null,"交替制","有・無"]
[null,null,null,null,null,null,null,null,null,null,null,null,null,null,null,null,null,"（土曜)"]
[null,null,null,null,null,null,null,null,"～",null,null,null,null,null,"円",null,null,null,null,null,"～",null,null,null,null,null,null,"会 社 の 特 長"]
[null,null,null,null,null,null,null,null,null,null,null,null,null,null,null,null,"休　憩\n時　間",null,null,null,"～"]
[null,null,null,"基本給",null,null,null,null,null,"～",null,null,null,null,"円"]
[null,null,null,null,null,null,"手当",null,null,null,null,null,null,null,"円",null,"時間外","有・無","（月平均",null,null,null,"時間）"]
[null,null,null,null,null,null,"手当",null,null,null,null,null,null,null,"円"]
[null,null,null,null,null,null,"手当",null,null,null,null,null,null,null,"円",null,"休　日","日曜・祝日・",null,null,null,null,"曜","(月",null,"回)"]
[null,null,null,null,null,null,"手当",null,null,null,null,null,null,null,"円",null,null," 年間休日数",null,null,null,null,"日"]
[null,null,null,"　　  通勤手当",null,null,null,"全額・定額",null,null,"（",null,null,"円まで）",null,null,null," その他（",null,null,null,null,null,null,null,"）"]
[null,null,null,null,null,null,null,null,null,null,null,null,null,null,null,"雇用形態"]
[null,null,null,null,null,"賃金形態",null,"月給制・日給月給制・その他",null,null,null,null,null,null,null,"雇用期間"]
[null,null,null,null,null,"賞　　与",null,"年",null,"回","：",null,null,"月分・円",null,"その他",null,null,null,null,null,null,null,null,null,null,null,"備　考","◎求人票は雇用契約書ではありません。採用時には必ず，書面により労働条件の明示を受けてください。"]
[null,null,null,null,null,"昇　　給",null,"昨年実績",null,null,"：",null,null,"％・円"]
[null,null,null,null,null,"退 職 金",null,"有・無",null,null,"：",null,null,"年以上",null,null,null,null,null,null,null,null,null,null,null,null,null,null,"◎地域別最低賃金改定後は，法定どおりに給与を見直します。"]
[null,null,null,null,null,null,null,null,null,null,null,null,null,null,null,null,"賃金締切日毎月",null,null,"日",null,"支払日毎月",null,null,null,"日"]
[]
[]
[]
[]
[null,"■　更新履歴※"]
[null,"No.","更新日",null,null,null,null,null,null,"特記事項"]
[null,1]
[null,2]
[null,3]
[null,4]
[null,5]
[null,6]
[null,7]
[null,8]
[null,9]
[null,10]

{"sheet":"例外事由","index":2,"n_rows":57,"n_cols":2,"rows_kept":57,"cut":false,"hidden":false,"merged":[[13,0,13,8],[14,0,14,8],[15,0,15,8],[31,0,31,8],[32,0,32,8],[55,0,55,8],[56,0,56,8],[48,0,48,8],[51,0,51,8],[52,0,52,8],[53,0,53,8],[54,0,54,8],[0,0,0,8],[6,1,9,7],[2,1,4,7],[34,0,34,8],[35,0,35,8],[25,0,25,8],[26,0,26,8],[28,0,28,8],[29,0,29,8],[16,0,16,8],[17,0,17,8],[19,0,19,8],[24,0,24,8],[27,0,27,8],[33,0,33,8],[11,0,11,8],[43,0,43,8],[44,0,44,8],[21,0,21,8],[46,0,46,8],[41,0,41,8],[42,0,42,8],[40,0,40,8],[38,0,38,8],[39,0,39,8],[36,0,36,8],[37,0,37,8]]}
["募集・採用時の年齢制限は禁止です！"]
[]
[null,"　 雇用対策法が改正され，平成１９年１０月から，事業主は労働者の募集及び採用について，年齢にかかわりなく均等な機会を与えなければならないこととされ，年齢制限の禁止が義務化されました。"]
[]
[]
[]
[null,"　 事業主は，労働者の募集・採用を行うに当たって，やむを得ない理由により年齢制限を行う場合には，雇用対策法施行規則第１条の３第１項各号の例外事由のいずれに当たるのか，その個別具体的な理由を書面や電子媒体により提示することが義務付けられています。（高年齢者雇用安定法第１８条の２第１項）"]
[]
[]
[]
[]
["年齢制限を行う場合の例外事由（確認事項・記載例）"]
[]
["１　雇用対策法施行規則第１条の３第１項第２号に該当する場合"]
["　①　定年を上限年齢としていること。"]
["　②　期間の定めのない労働契約であること。"]
["　　【事 例】"]
["   　　　６０歳未満の方を募集（定年が６０歳）"]
[]
["２　雇用対策法施行規則第１条の３第１項第２号に該当する場合"]
["　　法令の規定により特定の年齢層の就業等が禁止又は制限されている業務であること。"]
["　　【事 例】"]
["　　　　 警備員として１８歳以上の方を募集（警備業法により１８歳未満の就業等が禁止）"]
[]
["３　雇用対策法施行規則第１条の３第１項第３号イに該当する場合"]
["　①　期間の定めのない労働契約であること。"]
["　②　就業経験不問の求人であること。"]
["　③　新規学卒者と同等の処遇とすること。"]
["　　【事 例】"]
["　　　　 ３０歳未満の方を募集（経験不問・新規学卒者と同等の処遇）"]
[]
["４　雇用対策法施行規則第１条の３第１項第３号ロに該当する場合"]
["　①　特定の職種に限定されていること。"]
["　②　労働者数が相当程度少ないか否かの算定を企業単位とすること。また，人事管理制度に照ら"]
[" 　 し必要と認められるときは，一部の事業所単位とすること。（一部の事業所単位とする場合には，"]
["　　「○○地域限定で募集・採用するため，○○地域内の事業所（○箇所）を単位とする。」との記載"]
["　　を求める。"]
["　③　企業又は一部の事業所を算定単位とした中で，特定の職種において３０歳～４９歳のうちの特"]
["　　定の５～１０歳幅の年齢層であって，同じ年齢幅の上下の年齢層と比較して労働者数が１／２以"]
["  　下であること。"]
["　④　 期間の定めのない労働契約であること。"]
["　　【事 例】"]
["　　　　□□社の■■事業所の電気・通信技術者として３０～３９歳の方を○○人募集（□□社■■"]
["　　 事業所の電気・通信技術者は，２０～２９歳が２００人，３０～３９歳が８０人，４０～４９歳が３００"]
["　　 人）"]
[]
["５　雇用対策法施行規則第１条の３第１項第３号ハに該当する場合"]
["　　芸術又は芸能の分野であり，表現の真実性等を確保する必要があること。"]
["　　【事 例】"]
["　　　　 演劇の子役のため，△歳以下の方を募集"]
[]
["６　雇用対策法施行規則第１条の３第１項第３号ニ"]
["　①　６０歳以上の募集・採用であること。"]
["　②　特定の年齢層を対象とする国の施策を活用することを前提に募集・採用を行うこと。"]
["　　【事 例】"]
["   　①　６０歳以上の方を募集"]
["   　②　４５歳以上６５歳未満の方を募集（特定就職困難者雇用開発助成金の対象者として募集）"]

{"sheet":"選択肢","index":3,"n_rows":25,"n_cols":26,"rows_kept":25,"cut":false,"hidden":true,"merged":[[3,18,3,19]]}
[]
[]
[]
["てん末","勤務場所","転勤の可能性","駅・バス停から","自動車運転免許","ＡＴ限定","通勤手当","賃金形態","賞与","昇給","退職金","交替制","時間外","休日","創立年月日","就業規則","労働組合","宿舎","加入保険",null,"定年","再雇用"]
["充足・取消","市・町・村","有・無","駅・バス停から","要・否","可・不可","全額・定額","月給制・日給月給制・その他","月分・円","％・円","有・無","有・無","有・無","日曜・祝日・","大・明・昭・平・令","有・無","有・無","有・無","雇用",false,"有・無","有・無"]
["充足","市","有","駅から","要","可","全額","月給制","月分","％","有","有","有","日曜・","大正","有","有","有","労災",false,"有","有"]
["取消","町","無","バス停から","否","不可","定額","日給月給制","円","円","無","無","無","祝日・","明治","無","無","無","健康",false,"無","無"]
[null,"村",null,null,null,null,"上限","その他",null,null,null,null,null,null,"昭和",null,null,null,"厚生",false]
[null,null,null,null,null,null,null,null,null,null,null,null,null,null,"平成"]
[null,null,null,null,null,null,null,null,null,null,null,null,null,null,"令和"]
[null,null,null,null,null,null,null,null,null,null,null,null,null,null,null,null,null,null,null,{"$f":"IF(T5=FALSE,0,1)","v":0},1,"雇用","雇用"]
[null,null,null,null,null,null,null,null,null,null,null,null,null,null,null,null,null,null,null,{"$f":"IF(T6=FALSE,0,2)","v":0},2,"労災",null,"労災"]
[null,null,null,null,null,null,null,null,null,null,null,null,null,null,null,null,null,null,null,{"$f":"IF(T7=FALSE,0,4)","v":0},3,"雇用・労災","雇用","労災"]
[null,null,null,null,null,null,null,null,null,null,null,null,null,null,null,null,null,null,null,{"$f":"IF(T8=FALSE,0,8)","v":0},4,"健康",null,null,"健康"]
[null,null,null,null,null,null,null,null,null,null,null,null,null,null,null,null,null,null,null,{"$f":"SUM(T11:T14)","v":0},5,"雇用・健康","雇用",null,"健康"]
[null,null,null,null,null,null,null,null,null,null,null,null,null,null,null,null,null,null,null,null,6,"労災・健康",null,"労災","健康"]
[null,null,null,null,null,null,null,null,null,null,null,null,null,null,null,null,null,null,null,null,7,"雇用・労災・健康","雇用","労災","健康"]
[null,null,null,null,null,null,null,null,null,null,null,null,null,null,null,null,null,null,null,null,8,"厚生",null,null,null,"厚生"]
[null,null,null,null,null,null,null,null,null,null,null,null,null,null,null,null,null,null,null,null,9,"雇用・厚生","雇用",null,null,"厚生"]
[null,null,null,null,null,null,null,null,null,null,null,null,null,null,null,null,null,null,null,null,10,"労災・雇用",null,"労災"]
[null,null,null,null,null,null,null,null,null,null,null,null,null,null,null,null,null,null,null,null,11,"雇用・労災・厚生","雇用","労災",null,"厚生"]
[null,null,null,null,null,null,null,null,null,null,null,null,null,null,null,null,null,null,null,null,12,"健康・雇用"]
[null,null,null,null,null,null,null,null,null,null,null,null,null,null,null,null,null,null,null,null,13,"雇用・健康・厚生","雇用",null,"健康","厚生"]
[null,null,null,null,null,null,null,null,null,null,null,null,null,null,null,null,null,null,null,null,14,"労災・健康・厚生",null,"労災","健康","厚生"]
[null,null,null,null,null,null,null,null,null,null,null,null,null,null,null,null,null,null,null,null,15,"雇用・労災・健康・厚生","雇用","労災","健康","厚生"]

{"sheet":"コピー用データ","index":4,"n_rows":79,"n_cols":16,"rows_kept":79,"cut":false,"hidden":true,"merged":[]}
[]
[null,"索引区分",{"$f":"求人票!D2","v":0},{"$f":"C2&\"-\"&C3","v":"0-0"},{"$f":"MID(C2,3,4)","v":""},null,null,null,null,null,"所在地（〒）",{"$f":"\"〒\"&求人票!AD6","v":"〒"},{"$f":"求人票!AD6","v":0}]
[null,"求人番号",{"$f":"求人票!I2","v":0},null,null,null,null,null,null,null,"所在地（住所）",{"$f":"求人票!AG6","v":0}]
[null,"求人年月日",{"$f":"求人票!S2","v":"00:00:00"},null,null,null,null,null,null,null,"Tel",{"$f":"\"℡\"&求人票!AD7","v":"℡"},{"$f":"求人票!AD7","v":0}]
[null,"取扱者",{"$f":"求人票!Y2","v":0},null,null,null,null,null,null,null,"Fax",{"$f":"求人票!AL7","v":0}]
[null,"産業分類番号",{"$f":"求人票!AC2","v":0},{"$f":"LEFT(C6,1)","v":"0"},{"$f":"MID(C6,3,4)","v":""},null,null,null,null,null,"求人責任者（役職）",{"$f":"求人票!AS6","v":0}]
[null,"職業分類番号",{"$f":"求人票!AH2","v":0},null,null,null,null,null,null,null,"求人責任者（氏名）",{"$f":"求人票!AS7","v":0}]
[null,"有効期限",{"$f":"求人票!AO2","v":"00:00:00"},null,null,null,null,null,null,null,"E-mail",{"$f":"求人票!AC8","v":0}]
[null,"てん末（選択）",{"$f":"求人票!#REF!","v":{"$error":"#REF!"}},null,null,null,null,null,null,null,"創立年号",{"$f":"求人票!AC11","v":"大・明・昭・平・令"}]
[null,"てん末（記載）",{"$f":"求人票!#REF!","v":{"$error":"#REF!"}},null,null,null,null,null,null,null,"創立年",{"$f":"求人票!AC12","v":0}]
[null,"事業所名",{"$f":"求人票!D6","v":0},null,{"$f":"FIND(\"株式会社\",C11)","v":{"$error":"#VALUE!"}},{"$f":"FIND(\"有限会社\",C11)","v":{"$error":"#VALUE!"}},{"$f":"IF(IFERROR(E11,0)>0,SUBSTITUTE(C11,\"株式会社\",\"(株)\"),IF(IFERROR(F11,0)>0,SUBSTITUTE(C11,\"有限会社\",\"(有)\"),C11))","v":0},null,null,null,"資本金",{"$f":"求人票!AK11","v":0}]
[null,"業種",{"$f":"求人票!R6","v":0},null,null,null,null,null,null,null,"従業員数（事業所）",{"$f":"求人票!AE13","v":0}]
[null,"URL",{"$f":"求人票!H8","v":0},null,null,null,null,null,null,null,"従業員数（男）",{"$f":"求人票!AI13","v":0}]
[null,"職種",{"$f":"求人票!D11","v":0},null,null,null,null,null,null,null,"従業員数（女）",{"$f":"求人票!AI14","v":0}]
[null,"役職名",{"$f":"求人票!D14","v":0},null,null,null,null,null,null,null,"従業員数（全体）",{"$f":"求人票!AL13","v":0},{"$f":"\"(\"&L15&\")\"","v":"(0)"}]
[null,"採用数",{"$f":"求人票!D16","v":0},null,null,null,null,null,null,null,"他の事業所",{"$f":"求人票!AC15","v":0}]
[null,"年齢条件",{"$f":"求人票!H16","v":0},null,null,null,null,null,null,null,"就業規則",{"$f":"求人票!AC22","v":"有・無"}]
[null,"勤務地",{"$f":"求人票!Q11","v":0},{"$f":"C18&C19","v":"0市・町・村"},null,null,null,null,null,null,"労働組合",{"$f":"求人票!AI22","v":"有・無"}]
[null,"勤務場(市町村)",{"$f":"求人票!U11","v":"市・町・村"},null,null,null,null,null,null,null,"宿舎",{"$f":"求人票!AL22","v":"有・無"}]
[null,"路線名",{"$f":"求人票!Q15","v":0},null,null,null,null,null,null,null,"加入保険",{"$f":"VLOOKUP(選択肢!T15,選択肢!U11:V25,2,FALSE)","v":{"$error":"#N/A"}},{"$f":"IF(VLOOKUP(選択肢!T15,選択肢!U11:Z25,3,FALSE)=0,\" \",VLOOKUP(選択肢!T15,選択肢!U11:Z25,3,FALSE))","v":{"$error":"#N/A"}},{"$f":"IF(VLOOKUP(選択肢!T15,選択肢!U11:Z25,4,FALSE)=0,\" \",VLOOKUP(選択肢!T15,選択肢!U11:Z25,4,FALSE))","v":{"$error":"#N/A"}},{"$f":"IF(VLOOKUP(選択肢!T15,選択肢!U11:Z25,5,FALSE)=0,\" \",VLOOKUP(選択肢!T15,選択肢!U11:Z25,5,FALSE))","v":{"$error":"#N/A"}},{"$f":"IF(VLOOKUP(選択肢!T15,選択肢!U11:Z25,6,FALSE)=0,\" \",VLOOKUP(選択肢!T15,選択肢!U11:Z25,6,FALSE))","v":{"$error":"#N/A"}}]
[null,"駅・バス停名",{"$f":"求人票!Q16","v":0},null,null,null,null,null,null,null,"定年",{"$f":"求人票!AJ24","v":"有・無"}]
[null,"駅・バス停選択",{"$f":"求人票!S16","v":"駅・バス停から"},null,null,null,null,null,null,null,"定年（年齢）",{"$f":"求人票!AM24","v":0}]
[null,"徒歩時間",{"$f":"求人票!U17","v":0},null,null,null,null,null,null,null,"再雇用",{"$f":"求人票!AJ25","v":"有・無"}]
[null,"転勤の可能性",{"$f":"求人票!Y11","v":"有・無"},null,null,null,null,null,null,null,"主な取引先",{"$f":"求人票!AC26","v":0}]
[null,"職務の内（1）",{"$f":"求人票!D18","v":0},null,null,null,null,null,null,null,"年商",{"$f":"求人票!AK26","v":0}]
[null,"職務の内（2）",{"$f":"求人票!D20","v":0},null,null,null,null,null,null,null,"採用担当者（役職）",{"$f":"求人票!AR11","v":0}]
[null,"職務の内（3）",{"$f":"求人票!D22","v":0},null,null,null,null,null,null,null,"採用担当者（氏名）",{"$f":"求人票!AR12","v":0}]
[null,"職務の内（4）",{"$f":"求人票!D24","v":0},null,null,null,null,null,null,null,"採用担当者（連絡先）",{"$f":"求人票!AR13","v":0}]
[null,"職務の内（5）",{"$f":"求人票!D26","v":0},null,null,null,null,null,null,null,"面接（日時）",{"$f":"求人票!AQ15","v":0}]
[null,"必要な条件（1）",{"$f":"求人票!D30","v":0},null,null,null,null,null,null,null,"面接（場所）",{"$f":"求人票!AR15","v":0}]
[null,"必要な条件（2）",{"$f":"求人票!D32","v":0},null,null,null,null,null,null,null,"必要書類",{"$f":"求人票!AQ17","v":"履歴書（写真添付）"}]
[null,"必要な条件（3）",{"$f":"求人票!D34","v":0},null,null,null,null,null,null,null,"必要書類（その他）",{"$f":"求人票!AR18","v":0}]
[null,"その他の特記事項（1）",{"$f":"求人票!D36","v":0},null,null,null,null,null,null,null,"その他連絡事項",{"$f":"求人票!AP19","v":0}]
[null,"その他の特記事項（2）",{"$f":"求人票!D38","v":0},null,null,null,null,null,null,null,"事業内容（１）",{"$f":"求人票!AC30","v":0}]
[null,"賃金条件総支給額（下限）",{"$f":"求人票!D44","v":0},null,null,null,null,null,null,null,"事業内容（２）",{"$f":"求人票!AC32","v":0}]
[null,"賃金条件総支給額（上限）",{"$f":"求人票!J44","v":0},null,null,null,null,null,null,null,"事業内容（３）",{"$f":"求人票!AC34","v":0}]
[null,"賃金条件基本給（下限）",{"$f":"求人票!G46","v":0},null,null,null,null,null,null,null,"事業内容（４）",{"$f":"求人票!AC36","v":0}]
[null,"賃金条件基本給（上限）",{"$f":"求人票!L46","v":0},null,null,null,null,null,null,null,"事業内容（５）",{"$f":"求人票!AC38","v":0}]
[null,"手当名（1）",{"$f":"求人票!D47","v":0},{"$f":"IF(C39=0,0,1)","v":0},{"$f":"SUM(D39:D48)","v":0},null,null,null,null,null,"事業内容（６）",{"$f":"求人票!AC40","v":0}]
[null,"手当額（1）",{"$f":"求人票!H47","v":0},{"$f":"IF(C40=0,0,1)","v":0},{"$f":"IF(E39>0,\"その他\",\" \")","v":" "},null,null,null,null,null,"事業内容（７）",{"$f":"求人票!AC42","v":0}]
[null,"手当名（2）",{"$f":"求人票!D48","v":0},0,null,null,null,null,null,null,"会社の特徴（１）",{"$f":"求人票!AC44","v":0}]
[null,"手当額（2）",{"$f":"求人票!H48","v":0},0,null,null,null,null,null,null,"会社の特徴（２）",{"$f":"求人票!AC46","v":0}]
[null,"手当名（3）",{"$f":"求人票!D49","v":0},0,null,null,null,null,null,null,"会社の特徴（３）",{"$f":"求人票!AC48","v":0}]
[null,"手当額（3）",{"$f":"求人票!H49","v":0},0,null,null,null,null,null,null,"会社の特徴（４）",{"$f":"求人票!AC50","v":0}]
[null,"手当名（4）",{"$f":"求人票!D50","v":0},0,null,null,null,null,null,null,"会社の特徴（５）",{"$f":"求人票!AC52","v":0}]
[null,"手当額（4）",{"$f":"求人票!H50","v":0},0,null,null,null,null,null,null,"備考（１）",{"$f":"求人票!AC54","v":"◎求人票は雇用契約書ではありません。採用時には必ず，書面により労働条件の明示を受けてください。"}]
[null,"通勤手当支払い範囲",{"$f":"求人票!H51","v":"全額・定額"},null,null,null,null,null,null,null,"備考（２）",{"$f":"求人票!AC55","v":0}]
[null,"通勤手当額",{"$f":"求人票!L51","v":0},0]
[null,"賃金形態",{"$f":"求人票!H53","v":"月給制・日給月給制・その他"}]
[null,"賞与回数",{"$f":"求人票!I54","v":0},{"$f":"IF(C50>0,\"賞 与\",\" \")","v":" "}]
[null,"賞与額",{"$f":"求人票!L54","v":0}]
[null,"賞与単位",{"$f":"求人票!N54","v":"月分・円"}]
[null,"昇給額",{"$f":"求人票!L55","v":0}]
[null,"昇給単位",{"$f":"求人票!N55","v":"％・円"}]
[null,"退職金有無",{"$f":"求人票!H56","v":"有・無"}]
[null,"勤務年数",{"$f":"求人票!L56","v":0}]
[null,"就業時間（１）開始",{"$f":"求人票!R42","v":"00:00:00"}]
[null,"就業時間（１）終了",{"$f":"求人票!V42","v":"00:00:00"}]
[null,"就業時間（２）開始",{"$f":"求人票!R44","v":"00:00:00"}]
[null,"就業時間（２）終了",{"$f":"求人票!V44","v":"00:00:00"}]
[null,"就業時間注釈",{"$f":"求人票!R43","v":"（土曜)"}]
[null,"交替制",{"$f":"求人票!Z42","v":"有・無"}]
[null,"休憩時間開始",{"$f":"求人票!R45","v":"00:00:00"}]
[null,"休憩時間終了",{"$f":"求人票!V45","v":"00:00:00"}]
[null,"休憩時間注釈",{"$f":"求人票!R46","v":0}]
[null,"時間外の有無",{"$f":"求人票!R47","v":"有・無"}]
[null,"月平均時間",{"$f":"求人票!V47","v":0}]
[null,"休日",{"$f":"求人票!R49","v":"日曜・祝日・"},{"$f":"IF(C68=\"日曜・祝日・\",\"日曜\",IF(C68=\"日曜・\",\"日曜\",IF(C68=\"祝日・\",\"祝日\",\" \")))","v":"日曜"},{"$f":"IF(C68=\"日曜・祝日・\",\"祝日\",\" \")","v":"祝日"}]
[null,"休日（平日曜日）",{"$f":"求人票!U49","v":0},{"$f":"C69&\"曜日(月\"&C70&\"回)\"","v":"0曜日(月0回)"}]
[null,"休日（平日回数）",{"$f":"求人票!Y49","v":0}]
[null,"年間休日数",{"$f":"求人票!U50","v":0},{"$f":"\"年間休日数\"&C71&\"日\"","v":"年間休日数0日"}]
[null,"休日（その他）",{"$f":"求人票!T51","v":0}]
[null,"雇用形態",{"$f":"求人票!Q52","v":0}]
[null,"雇用期間",{"$f":"求人票!Q53","v":0}]
[null,"その他（１）",{"$f":"求人票!Q54","v":0}]
[null,"その他（２）",{"$f":"求人票!Q55","v":0}]
[null,"その他（３）",{"$f":"求人票!Q56","v":0}]
[null,"賃金締め切り日",{"$f":"求人票!S57","v":0}]
[null,"支払日",{"$f":"求人票!Y57","v":0}]

{"sheet":"求人受付簿","index":5,"n_rows":8,"n_cols":10,"rows_kept":8,"cut":false,"hidden":true,"merged":[[0,0,1,10],[3,0,4,0],[3,1,4,1],[3,2,3,3],[3,5,4,5],[3,6,4,6],[3,7,4,7],[3,8,4,8],[3,9,4,9],[3,10,4,10],[5,6,8,6],[5,0,6,0],[5,1,8,1],[5,4,6,4],[7,0,8,0],[7,4,8,4],[8,2,8,3],[5,2,6,3]]}
["求　人　受　付　簿"]
[]
[]
["受付番号","受付年月日","事業所名",null,"職　種","人数","年齢","規模","賃金","産業分類"]
[null,null,"〒所在地","電話番号","コード"]
[]
[null,null,null,null,null,"人",null,null,"～",""]
[null,null,"〒","℡",null,null,null,"人"]

{"sheet":"求人名簿","index":6,"n_rows":7,"n_cols":19,"rows_kept":7,"cut":false,"hidden":true,"merged":[[2,0,2,18],[3,16,3,17],[6,16,6,18]]}
[]
[]
["ふるさと人材相談室求人事業所名簿"]
[null,"登録日",null,"新中\n分類","求人番号","事業所名","ふりがな","〒","住所","電話番号","メールアドレス","募集職種","人員","産業\nコード","産業","規模","地域",null,"備考"]
[null,null,null,null,null,null,null,null,null,null,null,null,null,null,""]
[null,null,null,null,null,null,"↑",null,null,null,null,null,null,null,null,null,"↑","↑","↑"]
[null,null,null,null,null,null,"手入力",null,null,null,null,null,null,null,null,null,"手入力"]

{"sheet":"求人HP","index":7,"n_rows":10,"n_cols":15,"rows_kept":10,"cut":false,"hidden":true,"merged":[[4,4,7,4],[4,6,7,6],[3,0,3,1]]}
[]
[]
[]
["登録\n番号",null,"職種","職務内容\n（必要な条件）","年齢","求人数","事　業　所　名","事業内容","従業\n員数","所在地　　　            　　勤務場所","就業時間","休日","支給総額","手当               　  賞与","社会\n保険"]
[null,null,null,null,null,null,null,null,null,null,null,null,null," "]
[null,null,null,null,null,"人",null,null,null,null,"～",null,"～"]
[null,null,null,null,null,null,null,null,"人"]
[]
[null,null,null,"↑",null,null,null,"↑"]
[null,null,null,"手入力",null,null,null,"手入力"]